bitfinex/quotes_SOLUSD_20250602
["timestamp","ask_amount","ask_price","bid_price","bid_amount"]
[1748824572484,21.25525024,157.6,157.55,21.25525024]
[1748824572680,22.82365024,157.6,157.54,27.6028445]
[1748824572892,22.82365024,157.6,157.54,6.34759426]
[1748824572893,170.15525024,157.59,157.54,6.34759426]
[1748824573110,10.94,157.58,157.55,21.25525024]
[1748824573415,10.94,157.58,157.56,21.25525024]
[1748824574084,10.94,157.58,157.55,27.60221032]
[1748824574812,10.94,157.58,157.52,6.3484002]
[1748824574813,32.19525024,157.58,157.52,6.3484002]
[1748824574978,32.19525024,157.58,157.52,27.60365044]
[1748824575389,38.5412995,157.58,157.52,27.60365044]
[1748824575586,148.9,157.57,157.52,27.60365044]
[1748824575797,148.9,157.57,157.53,21.25525024]
[1748824575992,148.9,157.57,157.53,27.60313275]
[1748824576377,148.9,157.57,157.54,21.25525024]
[1748824576577,148.9,157.57,157.55,21.25525024]
[1748824577191,148.9,157.57,157.54,21.25525024]
[1748824578191,148.9,157.57,157.53,21.25525024]
[1748824578380,176.50169097,157.57,157.51,6.34865884]
[1748824578586,176.50169097,157.57,157.51,27.60390908]
[1748824578587,21.25525024,157.56,157.51,27.60390908]
[1748824578789,195.48644073,157.57,157.46,46.6077]
[1748824578790,21.25525024,157.54,157.47,18.64964886]
[1748824578989,21.25525024,157.52,157.47,27.60566619]
[1748824579285,32.19525024,157.51,157.46,21.25525024]
[1748824579697,10.94,157.51,157.49,21.25525024]
[1748824579913,10.94,157.51,157.5,21.25525024]
[1748824580286,10.94,157.51,157.5,27.60445658]
[1748824580794,32.2085,157.59,157.5,62.12712131]
[1748824580795,21.25525024,157.58,157.5,62.12712131]
[1748824580980,10.94,157.56,157.53,21.25525024]
[1748824581922,10.94,157.56,157.54,21.25525024]
[1748824582125,10.94,157.56,157.55,21.25525024]
[1748824582294,10.94,157.56,157.55,46.25209046]
[1748824583016,10.94,157.56,157.55,6.34719136]
[1748824583528,10.94,157.56,157.55,27.6024416]
[1748824586227,10.94,157.56,157.55,46.25209046]
[1748824587403,10.88,157.61,157.55,62.12006887]
[1748824587611,10.88,157.61,157.58,21.25525024]
[1748824588235,10.88,157.61,157.59,6.3455803]
[1748824589555,10.88,157.61,157.56,21.25525024]
[1748824589854,10.88,157.61,157.57,21.25525024]
[1748824590419,10.88,157.61,157.57,27.60133852]
[1748824591038,10.88,157.61,157.56,6.34666231]
[1748824591340,32.13525024,157.61,157.56,27.60191255]
[1748824591548,10.88,157.61,157.58,21.25525024]
[1748824591717,10.88,157.61,157.56,6.34666231]
[1748824592039,32.13525024,157.61,157.56,6.34666231]
[1748824592239,32.13525024,157.61,157.56,27.60191255]
[1748824592436,10.88,157.61,157.56,27.60191255]
[1748824592937,10.88,157.61,157.57,21.25525024]
[1748824593111,159.78,157.61,157.57,21.25525024]
[1748824595035,159.78,157.61,157.58,6.34598299]
[1748824595331,159.78,157.61,157.58,27.60123323]
[1748824597136,159.78,157.61,157.59,21.25525024]
[1748824598451,159.78,157.61,157.58,6.34598299]
[1748824598747,159.78,157.61,157.58,27.60123323]
[1748824600332,181.03525024,157.61,157.56,21.25525024]
[1748824600537,159.78,157.61,157.57,21.25525024]
[1748824601131,159.78,157.61,157.6,21.25525024]
[1748824601354,10.88,157.61,157.6,21.25525024]
[1748824601560,10.88,157.61,157.6,46.25007676]
[1748824601746,10.88,157.66,157.61,18.64964886]
[1748824601959,10.88,157.66,157.65,21.25525024]
[1748824602454,10.88,157.66,157.65,39.9048991]
[1748824602662,10.88,157.71,157.66,18.64964886]
[1748824602972,10.88,157.71,157.68,21.25525024]
[1748824603251,32.13525024,157.71,157.65,21.25525024]
[1748824603429,72.21525024,157.71,157.66,21.25525024]
[1748824604354,78.55618286,157.71,157.66,21.25525024]
[1748824606149,38.47618286,157.71,157.66,21.25525024]
[1748824606353,21.25525024,157.7,157.65,27.5983326]
[1748824606852,57.26093262,157.71,157.63,44.64964886]
[1748824607059,21.25525024,157.69,157.64,21.25525024]
[1748824607360,21.25525024,157.69,157.63,47.25525024]
[1748824607562,21.25525024,157.67,157.63,26.0]
[1748824608267,21.25525024,157.68,157.63,47.25525024]
[1748824608760,21.25525024,157.67,157.62,27.59954166]
[1748824609072,21.25525024,157.63,157.58,6.1089]
[1748824609254,21.25525024,157.62,157.57,21.25525024]
[1748824609639,21.25525024,157.62,157.57,47.25525024]
[1748824610135,32.13525024,157.63,157.58,21.25525024]
[1748824610449,32.13525024,157.63,157.59,6.3455803]
[1748824613092,10.88,157.63,157.62,21.25525024]
[1748824613461,10.88,157.63,157.6,39.9048991]
[1748824613983,10.88,157.63,157.62,39.9048991]
[1748824614278,10.88,157.63,157.62,18.64964886]
[1748824614461,10.88,157.63,157.62,39.9048991]
[1748824614855,148.9,157.66,157.63,40.85354405]
[1748824615067,148.9,157.66,157.63,62.10879429]
[1748824616561,148.9,157.66,157.65,39.9048991]
[1748824616760,10.74,157.68,157.66,18.64964886]
[1748824618153,10.74,157.68,157.67,6.34236062]
[1748824621804,10.74,157.68,157.67,46.24725972]
[1748824622000,10.74,157.73,157.68,18.64964886]
[1748824622165,10.74,157.73,157.7,18.64964886]
[1748824622363,10.74,157.73,157.71,21.25525024]
[1748824622784,10.74,157.73,157.72,39.9048991]
[1748824623297,10.74,157.73,157.72,24.98999884]
[1748824624561,12.35,157.78,157.72,46.24524908]
[1748824624788,10.74,157.78,157.75,18.64964886]
[1748824624988,10.74,157.78,157.76,21.25525024]
[1748824625193,10.74,157.78,157.75,18.64964886]
[1748824625194,10.74,157.78,157.75,39.9048991]
[1748824625366,21.25525024,157.77,157.74,18.64964886]
[1748824625865,31.99525024,157.78,157.74,18.64964886]
[1748824626795,31.99525024,157.78,157.72,32.34023601]
[1748824626796,21.25525024,157.76,157.72,32.34023601]
[1748824627584,21.25525024,157.73,157.66,27.59801314]
[1748824627769,21.25525024,157.73,157.66,6.3427629]
[1748824627770,21.25525024,157.7,157.66,6.3427629]
[1748824628179,21.25525024,157.71,157.66,6.3427629]
[1748824628393,21.25525024,157.7,157.66,6.3427629]
[1748824628568,21.25525024,157.71,157.66,27.59801314]
[1748824631467,21.25525024,157.69,157.61,6.5811]
[1748824631671,159.64,157.73,157.62,6.34437254]
[1748824631672,21.25525024,157.65,157.62,6.34437254]
[1748824631877,21.25525024,157.63,157.6,6.34517766]
[1748824632074,21.25525024,157.61,157.58,6.34567548]
[1748824632507,1.5598,157.66,157.58,6.34567548]
[1748824632800,21.25525024,157.63,157.58,27.60092572]
[1748824633292,21.25525024,157.62,157.58,6.34567548]
[1748824635198,21.25525024,157.64,157.59,39.9048991]
[1748824635501,21.25525024,157.61,157.58,6.34567548]
[1748824636902,21.25525024,157.62,157.58,6.34567548]
[1748824637398,21.25525024,157.59,157.58,6.34567548]
[1748824637697,10.74,157.61,157.58,6.34567548]
[1748824637882,31.99525024,157.61,157.58,6.34567548]
[1748824638086,21.25525024,157.59,157.56,6.34678852]
[1748824638296,21.25525024,157.58,157.56,6.34678852]
[1748824638873,21.25525024,157.57,157.56,6.34678852]
[1748824639277,21.25525024,157.59,157.55,6.34719136]
[1748824639474,21.25525024,157.59,157.55,32.34719136]
[1748824639900,21.25525024,157.59,157.55,48.21516977]
[1748824641201,21.25525024,157.58,157.55,32.34719136]
[1748824641885,21.25525024,157.56,157.53,6.34760194]
[1748824642087,1.6376,157.58,157.53,6.34760194]
[1748824642088,21.25525024,157.54,157.53,6.34760194]
[1748824642302,21.25525024,157.54,157.5,6.34920634]
[1748824642502,10.74,157.55,157.5,43.47747245]
[1748824642708,31.99525024,157.55,157.5,43.47747245]
[1748824643485,10.74,157.55,157.52,21.25525024]
[1748824643699,10.74,157.55,157.53,21.25525024]
[1748824644295,10.74,157.55,157.52,21.25525024]
[1748824646102,10.74,157.55,157.53,6.3479972]
[1748824648796,10.74,157.55,157.54,39.9048991]
[1748824649001,159.52,157.6,157.54,39.9048991]
[1748824649198,159.52,157.6,157.56,21.25525024]
[1748824649405,180.77525024,157.6,157.56,18.64964886]
[1748824649810,180.77525024,157.6,157.57,6.34638573]
[1748824649994,159.52,157.6,157.57,22.21235006]
[1748824654490,159.52,157.6,157.57,43.4676003]
[1748824654819,159.52,157.6,157.57,22.21235006]
[1748824656092,159.52,157.6,157.57,6.34638573]
[1748824656293,14.16756013,157.59,157.57,6.34638573]
[1748824656518,173.68756013,157.6,157.57,6.34638573]
[1748824656698,159.52,157.6,157.57,6.34638573]
[1748824657316,159.52,157.6,157.57,20.51394586]
[1748824658013,173.68756013,157.6,157.57,6.34638573]
[1748824658322,173.68756013,157.6,157.56,6.34678852]
[1748824659191,173.68756013,157.6,157.54,15.86815112]
[1748824659192,14.16756013,157.58,157.54,6.34759426]
[1748824660296,14.16756013,157.59,157.54,6.34759426]
[1748824661308,14.16756013,157.58,157.54,6.34759426]
[1748824665627,14.16756013,157.56,157.53,6.34784987]
[1748824665810,14.16756013,157.55,157.53,6.34784987]
[1748824666003,14.16756013,157.55,157.51,6.34880325]
[1748824667099,14.16756013,157.56,157.51,6.34880325]
[1748824667824,14.16756013,157.54,157.51,6.34880325]
[1748824668005,14.16756013,157.52,157.51,6.34880325]
[1748824669002,14.16756013,157.52,157.47,41.87529289]
[1748824669223,14.16756013,157.49,157.44,22.2297578]
[1748824669428,14.16756013,157.47,157.44,22.2297578]
[1748824670712,10.62,157.48,157.44,15.87813179]
[1748824670917,10.62,157.48,157.45,14.16756013]
[1748824671120,10.62,157.48,157.44,30.04569192]
[1748824671619,10.62,157.48,157.46,14.16756013]
[1748824672135,10.62,157.48,157.45,32.81720899]
[1748824672606,10.62,157.48,157.45,18.64964886]
[1748824673208,10.62,157.48,157.46,6.35081925]
[1748824677436,10.62,157.48,157.46,20.51837938]
[1748824678233,10.52,157.52,157.47,32.81720899]
[1748824678716,24.68756013,157.52,157.47,32.81720899]
[1748824679629,24.68756013,157.52,157.48,6.3500127]
[1748824679833,24.68756013,157.52,157.48,22.22504445]
[1748824680238,10.52,157.52,157.48,22.22504445]
[1748824680533,24.68756013,157.52,157.48,22.22504445]
[1748824680833,10.52,157.52,157.48,36.39260458]
[1748824681421,10.52,157.52,157.51,6.34880325]
[1748824682635,148.9,157.55,157.51,36.3883715]
[1748824682810,10.52,157.57,157.54,14.16756013]
[1748824683621,10.52,157.57,157.55,6.34719136]
[1748824684217,10.52,157.57,157.55,20.51475149]
[1748824684428,10.52,157.57,157.56,14.16756013]
[1748824684926,148.9,157.59,157.56,14.16756013]
[1748824685636,92.9183,157.6,157.57,6.34638573]
[1748824685938,14.16756013,157.58,157.55,6.34719136]
[1748824686513,14.16756013,157.57,157.53,6.3479972]
[1748824686917,14.16756013,157.56,157.53,6.3479972]
[1748824687946,14.16756013,157.56,157.52,15.87017175]
[1748824688126,14.16756013,157.56,157.52,6.3484002]
[1748824688547,24.66756013,157.55,157.52,6.3484002]
[1748824689460,14.16756013,157.53,157.51,6.34868537]
[1748824689643,10.5,157.55,157.51,6.34868537]
[1748824689644,14.16756013,157.52,157.51,6.34868537]
[1748824690034,14.16756013,157.53,157.48,20.51757283]
[1748824692326,10.5,157.55,157.48,20.51757283]
[1748824692327,14.16756013,157.51,157.48,6.3500127]
[1748824692846,1.5336,157.54,157.48,6.3500127]
[1748824692847,1.5336,157.54,157.49,14.16756013]
[1748824693166,15.70116013,157.54,157.49,14.16756013]
[1748824693344,10.5,157.55,157.51,14.16756013]
[1748824694060,10.5,157.55,157.52,14.16756013]
[1748824694233,10.5,157.55,157.53,6.3479972]
[1748824694431,10.5,157.55,157.53,20.51555733]
[1748824694632,10.5,157.59,157.54,40.16756013]
[1748824694843,10.5,157.59,157.55,14.16756013]
[1748824695043,24.66756013,157.59,157.54,40.16756013]
[1748824696647,24.66756013,157.59,157.55,6.34719136]
[1748824696854,10.5,157.59,157.55,20.51475149]
[1748824697248,10.5,157.59,157.55,36.3827299]
[1748824697452,10.5,157.59,157.56,14.16756013]
[1748824698744,10.5,157.59,157.57,6.34638573]
[1748824699537,10.5,157.59,157.57,20.51394586]
[1748824703559,10.5,157.59,157.57,6.34638573]
[1748824703745,24.66756013,157.59,157.57,6.34638573]
[1748824704575,10.5,157.59,157.57,6.34638573]
[1748824705284,10.5,157.59,157.56,6.34678852]
[1748824706058,10.5,157.59,157.56,36.38131996]
[1748824706760,10.5,157.59,157.57,14.16756013]
[1748824706965,10.5,157.59,157.58,14.16756013]
[1748824707278,10.5,157.59,157.56,36.38131996]
[1748824707570,10.5,157.59,157.56,22.21375983]
[1748824709961,10.5,157.59,157.57,14.16756013]
[1748824711370,10.5,157.59,157.58,6.34598299]
[1748824713970,10.5,157.59,157.58,20.51354312]
[1748824714160,10.5,157.59,157.58,6.34598299]
[1748824715653,10.5,157.59,157.56,22.21375983]
[1748824716066,10.5,157.59,157.56,36.38131996]
[1748824717193,10.5,157.59,157.57,14.16756013]
[1748824717367,24.66756013,157.61,157.56,36.38131996]
[1748824717882,10.5,157.61,157.57,14.16756013]
[1748824719758,10.5,157.61,157.58,6.34598299]
[1748824720066,10.5,157.61,157.58,36.3785006]
[1748824720472,10.5,157.61,157.6,14.16756013]
[1748824720662,10.5,157.65,157.6,32.81720899]
[1748824720862,10.5,157.65,157.63,14.16756013]
[1748824721274,10.5,157.65,157.6,18.64964886]
[1748824721275,10.5,157.65,157.64,14.16756013]
[1748824721857,10.5,157.65,157.64,20.51112775]
[1748824722385,24.66756013,157.69,157.64,20.51112775]
[1748824722555,10.5,157.69,157.65,14.16756013]
[1748824723680,10.5,157.69,157.66,6.3427629]
[1748824723985,10.5,157.69,157.65,20.5106604]
[1748824724280,10.5,157.69,157.65,6.34310027]
[1748824724281,24.66756013,157.69,157.65,6.34310027]
[1748824726388,24.66756013,157.69,157.64,14.16756013]
[1748824726389,14.16756013,157.68,157.61,6.34477507]
[1748824726590,14.16756013,157.68,157.63,14.16756013]
[1748824727705,24.66756013,157.69,157.64,14.16756013]
[1748824728578,24.66756013,157.69,157.65,6.34316523]
[1748824729079,10.5,157.69,157.65,6.34316523]
[1748824729701,14.16756013,157.68,157.63,6.34397005]
[1748824729902,14.16756013,157.67,157.63,6.34397005]
[1748824730082,14.16756013,157.66,157.6,41.86219825]
[1748824730277,14.16756013,157.65,157.6,56.02975838]
[1748824730482,14.16756013,157.65,157.61,6.34477507]
[1748824730679,14.16756013,157.65,157.6,56.02975838]
[1748824730680,14.16756013,157.64,157.6,6.34505053]
[1748824730880,6.34266933,157.67,157.6,6.34505053]
[1748824731085,14.16756013,157.65,157.6,20.51261066]
[1748824731502,14.16756013,157.66,157.61,14.16756013]
[1748824732188,14.16756013,157.66,157.6,20.51261066]
[1748824733312,14.16756013,157.65,157.6,20.51261066]
[1748824734311,14.16756013,157.67,157.62,14.16756013]
[1748824734519,10.5,157.69,157.64,14.16756013]
[1748824734732,10.5,157.69,157.65,20.51072536]
[1748824734882,10.5,157.69,157.67,14.16756013]
[1748824735187,14.16756013,157.72,157.66,14.16756013]
[1748824736208,14.16756013,157.72,157.67,6.34236062]
[1748824736710,14.16756013,157.69,157.66,6.34261499]
[1748824736912,14.16756013,157.69,157.65,6.34304558]
[1748824737093,14.16756013,157.66,157.62,26.0]
[1748824737294,14.16756013,157.66,157.62,32.34423924]
[1748824737498,14.16756013,157.65,157.62,32.34423924]
[1748824737690,14.16756013,157.66,157.62,32.34423924]
[1748824738219,10.5,157.67,157.63,14.16756013]
[1748824738705,24.66756013,157.67,157.62,46.51179937]
[1748824739505,14.16756013,157.65,157.62,32.34423924]
[1748824740395,14.16756013,157.66,157.62,32.34423924]
[1748824741929,10.5,157.67,157.6,32.34492175]
[1748824742215,14.16756013,157.64,157.6,32.34492175]
[1748824743505,14.16756013,157.61,157.56,32.81720899]
[1748824743707,14.16756013,157.61,157.57,26.0]
[1748824744303,14.16756013,157.61,157.56,32.81720899]
[1748824744611,14.16756013,157.61,157.58,6.34598299]
[1748824744923,14.16756013,157.6,157.58,6.34598299]
[1748824745210,14.16756013,157.61,157.58,6.34598299]
[1748824746518,155.24360607,157.64,157.58,6.34598299]
[1748824746519,14.16756013,157.62,157.58,6.34598299]
[1748824746893,148.9,157.64,157.61,14.16756013]
[1748824747093,148.9,157.64,157.6,14.16756013]
[1748824747825,163.06756013,157.64,157.59,14.16756013]
[1748824748031,14.16756013,157.63,157.58,75.9585006]
[1748824748994,14.16756013,157.6,157.54,20.49286013]
[1748824749195,14.16756013,157.57,157.52,20.51596033]
[1748824749422,14.16756013,157.57,157.53,26.0]
[1748824749793,10.5,157.6,157.53,26.0]
[1748824749993,14.16756013,157.57,157.52,36.38634254]
[1748824750417,14.16756013,157.57,157.53,26.0]
[1748824750738,14.16756013,157.57,157.54,6.34759426]
[1748824753520,10.5,157.6,157.54,6.34759426]
[1748824753696,24.66756013,157.6,157.55,14.16756013]
[1748824753901,10.5,157.6,157.55,14.16756013]
[1748824754102,10.5,157.6,157.56,14.16756013]
[1748824754518,10.5,157.6,157.55,14.16756013]
[1748824754818,24.66756013,157.6,157.55,14.16756013]
[1748824755023,24.66756013,157.6,157.56,6.34678852]
[1748824755593,14.16756013,157.59,157.53,26.0]
[1748824755800,14.16756013,157.57,157.54,6.34759426]
[1748824756521,10.5,157.6,157.5,64.43164886]
[1748824756522,14.16756013,157.55,157.5,6.202]
[1748824756699,14.16756013,157.54,157.48,30.04222011]
[1748824756898,14.16756013,157.51,157.49,6.34960949]
[1748824757099,14.16756013,157.52,157.47,46.51797608]
[1748824757298,14.16756013,157.53,157.48,14.16756013]
[1748824760407,10.5,157.54,157.5,40.16756013]
[1748824761801,14.16756013,157.53,157.51,6.34880325]
[1748824762006,10.5,157.54,157.51,36.3883715]
[1748824763533,10.5,157.58,157.53,40.16756013]
[1748824763733,10.5,157.58,157.55,14.16756013]
[1748824763945,10.5,157.58,157.56,14.16756013]
[1748824764407,14.16756013,157.61,157.56,14.16756013]
[1748824765251,14.16756013,157.61,157.57,6.34638573]
[1748824766436,24.66756013,157.62,157.57,36.37991019]
[1748824766737,10.5,157.62,157.58,14.16756013]
[1748824767109,10.5,157.62,157.57,36.37991019]
[1748824768130,10.5,157.62,157.58,14.16756013]
[1748824768927,91.36,157.66,157.61,14.16756013]
[1748824769141,101.86,157.66,157.62,14.16756013]
[1748824769915,101.86,157.66,157.63,6.34397005]
[1748824770326,10.5,157.66,157.63,6.34397005]
[1748824771715,1.5103,157.71,157.65,14.16756013]
[1748824771926,1.5103,157.71,157.64,18.64964886]
[1748824771927,1.5103,157.71,157.68,6.34195839]
[1748824772131,15.67786013,157.71,157.68,6.34195839]
[1748824772334,15.67786013,157.71,157.67,6.3422753]
[1748824772833,1.5103,157.71,157.67,6.3422753]
[1748824773017,15.67786013,157.71,157.67,6.3422753]
[1748824775635,14.16756013,157.7,157.67,6.3422753]
[1748824776016,1.5103,157.71,157.67,6.3422753]
[1748824776215,15.67786013,157.71,157.67,6.3422753]
[1748824778331,14.16756013,157.7,157.66,6.34270184]
[1748824778718,14.16756013,157.7,157.65,20.51061936]
[1748824779040,14.16756013,157.69,157.64,14.16756013]
[1748824780121,14.16756013,157.69,157.64,20.51100759]
[1748824780819,14.16756013,157.69,157.64,6.34344746]
[1748824781228,14.16756013,157.67,157.64,6.34344746]
[1748824782251,14.16756013,157.68,157.63,6.34397005]
[1748824782429,14.16756013,157.68,157.63,20.51153018]
[1748824782745,14.16756013,157.65,157.61,20.5119342]
[1748824782945,14.16756013,157.66,157.61,20.5119342]
[1748824785522,14.16756013,157.68,157.63,14.16756013]
[1748824785824,148.9,157.7,157.66,14.16756013]
[1748824787343,148.9,157.7,157.67,6.34236062]
[1748824788131,148.9,157.7,157.67,20.50992075]
[1748824791536,10.48,157.72,157.69,20.50911634]
[1748824791737,10.48,157.72,157.7,14.16756013]
[1748824792048,150.5438,157.75,157.71,14.16756013]
[1748824793050,150.5438,157.75,157.72,6.34034998]
[1748824793453,164.71136013,157.75,157.72,6.34034998]
[1748824794647,150.5438,157.75,157.71,20.50831214]
[1748824794854,148.9,157.75,157.71,36.36019217]
[1748824795063,148.9,157.75,157.72,14.16756013]
[1748824795449,148.9,157.75,157.71,22.19263204]
[1748824795450,148.9,157.75,157.71,36.36019217]
[1748824795645,163.06756013,157.75,157.71,6.34075201]
[1748824795964,14.16756013,157.74,157.71,6.34075201]
[1748824796128,148.9,157.75,157.71,20.50831214]
[1748824796857,148.9,157.75,157.72,14.16756013]
[1748824797054,148.9,157.75,157.73,14.16756013]
[1748824797640,148.9,157.8,157.73,14.16756013]
[1748824797856,173.54756013,157.8,157.75,14.16756013]
[1748824798027,14.16756013,157.79,157.74,14.16756013]
[1748824798663,14.16756013,157.79,157.75,6.33914421]
[1748824798967,165.6518,157.8,157.72,14.16756013]
[1748824799177,14.16756013,157.77,157.72,20.50791011]
[1748824799742,198.92,157.8,157.72,36.35878507]
[1748824799965,14.16756013,157.79,157.74,14.16756013]
[1748824800354,213.08756013,157.8,157.75,14.16756013]
[1748824800661,213.08756013,157.8,157.76,6.33874239]
[1748824800853,14.16756013,157.79,157.76,6.33874239]
[1748824801765,173.54756013,157.8,157.76,6.33874239]
[1748824804879,10.48,157.8,157.77,14.16756013]
[1748824805044,10.48,157.8,157.79,6.33753723]
[1748824806466,10.48,157.8,157.78,6.33783276]
[1748824810165,10.48,157.8,157.77,14.16756013]
[1748824810356,10.48,157.8,157.76,20.50630252]
[1748824810971,10.48,157.8,157.77,14.16756013]
[1748824812362,10.48,157.8,157.78,6.3379389]
[1748824813668,148.9,157.83,157.79,14.16756013]
[1748824813879,148.9,157.83,157.8,14.16756013]
[1748824814573,148.9,157.83,157.81,6.33673404]
[1748824814979,148.9,157.83,157.8,6.33699199]
[1748824823159,148.9,157.83,157.8,20.50455212]
[1748824825473,148.9,157.83,157.8,6.33699199]
[1748824825474,14.16756013,157.82,157.8,6.33699199]
[1748824825984,163.06756013,157.83,157.8,6.33699199]
[1748824827588,163.06756013,157.83,157.79,6.33753723]
[1748824827764,163.06756013,157.83,157.79,20.50509736]
[1748824828587,14.16756013,157.8,157.76,26.0]
[1748824828784,148.9,157.82,157.77,6.33821731]
[1748824828785,14.16756013,157.81,157.77,6.33821731]
[1748824828986,148.9,157.82,157.78,14.16756013]
[1748824829388,148.9,157.82,157.79,14.16756013]
[1748824829767,148.9,157.82,157.8,6.33713561]
[1748824831484,148.9,157.82,157.79,6.33753723]
[1748824833480,14.16756013,157.81,157.78,45.83779997]
[1748824833895,14.16756013,157.81,157.77,6.33824647]
[1748824834393,14.16756013,157.81,157.77,20.5058066]
[1748824834574,163.06756013,157.82,157.77,20.5058066]
[1748824835095,14.16756013,157.81,157.77,6.33824647]
[1748824840076,14.16756013,157.81,157.77,20.5058066]
[1748824842192,14.16756013,157.81,157.77,6.33824647]
[1748824843312,148.9,157.82,157.74,6.33954608]
[1748824843313,14.16756013,157.78,157.74,6.33954608]
[1748824843603,14.16756013,157.78,157.74,20.50710621]
[1748824844297,14.16756013,157.79,157.74,20.50710621]
[1748824844483,14.16756013,157.81,157.76,14.16756013]
[1748824844682,14.16756013,157.8,157.76,14.16756013]
[1748824844994,14.16756013,157.8,157.75,53.66756013]
[1748824845781,14.16756013,157.8,157.76,6.33874239]
[1748824847087,14.16756013,157.79,157.75,39.5]
[1748824847283,14.16756013,157.79,157.75,45.83897452]
[1748824849102,14.16756013,157.78,157.75,45.83897452]
[1748824849484,14.16756013,157.77,157.74,6.33949143]
[1748824850605,14.16756013,157.78,157.74,6.33949143]
[1748824852987,10.46,157.79,157.75,14.16756013]
[1748824854292,24.62756013,157.79,157.75,14.16756013]
[1748824854695,10.46,157.79,157.76,6.33874239]
[1748824855007,24.62756013,157.79,157.76,6.33874239]
[1748824855320,24.62756013,157.79,157.75,6.33899919]
[1748824855493,14.16756013,157.78,157.75,6.33899919]
[1748824855692,14.16756013,157.78,157.74,6.33942694]
[1748824855693,14.16756013,157.77,157.74,6.33942694]
[1748824856085,14.16756013,157.77,157.73,6.33978729]
[1748824856285,14.16756013,157.75,157.73,6.33978729]
[1748824856796,1.5891,157.78,157.67,6.34236062]
[1748824856797,14.16756013,157.74,157.67,6.34236062]
[1748824856994,14.16756013,157.68,157.65,6.34316523]
[1748824866326,14.16756013,157.66,157.64,32.34349037]
[1748824866488,14.16756013,157.66,157.64,6.34349037]
[1748824866899,14.16756013,157.65,157.62,6.34437254]
[1748824867087,14.16756013,157.64,157.62,6.34437254]
[1748824867793,14.16756013,157.64,157.61,6.34477507]
[1748824868095,14.16756013,157.66,157.61,36.37427289]
[1748824869625,14.16756013,157.64,157.61,6.34477507]
[1748824871603,24.62756013,157.68,157.61,6.34477507]
[1748824871604,14.16756013,157.65,157.61,6.34477507]
[1748824873324,14.16756013,157.63,157.58,14.16756013]
[1748824873517,14.16756013,157.62,157.58,6.34598299]
[1748824873694,14.16756013,157.6,157.58,6.34598299]
[1748824874808,14.16756013,157.6,157.56,6.34678852]
[1748824875136,14.16756013,157.61,157.56,36.38131996]
[1748824876842,24.62756013,157.62,157.58,6.34598299]
[1748824878751,10.46,157.62,157.58,36.3785006]
[1748824879640,14.16756013,157.61,157.58,6.34598299]
[1748824879822,24.62756013,157.62,157.58,6.34598299]
[1748824883045,10.46,157.62,157.58,20.51354312]
[1748824883234,10.46,157.62,157.58,36.3785006]
[1748824884122,10.46,157.62,157.58,15.86495748]
[1748824885037,10.46,157.62,157.59,14.16756013]
[1748824885219,10.46,157.62,157.58,30.03251761]
[1748824886251,10.46,157.62,157.58,36.3785006]
[1748824886740,10.46,157.62,157.59,14.16756013]
[1748824888023,10.46,157.62,157.6,6.34517766]
[1748824888414,14.16756013,157.67,157.61,53.66756013]
[1748824888617,14.16756013,157.67,157.61,39.5]
[1748824888819,14.16756013,157.66,157.61,53.66756013]
[1748824889927,14.16756013,157.66,157.62,6.34437254]
[1748824890124,14.16756013,157.65,157.62,6.34437254]
[1748824890647,14.16756013,157.64,157.62,6.34437254]
[1748824891822,179.86956058,157.68,157.61,45.84475239]
[1748824891823,14.16756013,157.63,157.61,45.84475239]
[1748824892826,14.16756013,157.64,157.61,45.84475239]
[1748824893428,14.16756013,157.65,157.61,45.84475239]
[1748824893750,14.16756013,157.65,157.61,6.34475239]
[1748824899235,14.16756013,157.65,157.6,6.34517766]
[1748824900146,148.9,157.66,157.63,14.16756013]
[1748824900330,148.9,157.66,157.62,14.16756013]
[1748824900531,148.9,157.66,157.61,40.16756013]
[1748824901146,148.9,157.66,157.62,14.16756013]
[1748824901342,148.9,157.66,157.63,6.34397005]
[1748824901937,148.9,157.66,157.63,75.87145532]
[1748824902135,10.46,157.68,157.64,14.16756013]
[1748824902334,10.46,157.68,157.66,14.16756013]
[1748824902540,163.06756013,157.71,157.66,53.66756013]
[1748824902743,148.9,157.71,157.68,14.16756013]
[1748824902954,10.46,157.72,157.7,14.16756013]
[1748824903261,10.46,157.72,157.71,6.34075201]